bitfinex/quotes_ETHUSD_20250626
["timestamp","ask_amount","ask_price","bid_price","bid_amount"]
[1750922869985,0.95917241,2494.0,2493.4,3.15683424]
[1750922870183,0.95917241,2494.0,2493.6,6.891]
[1750922870670,0.95917241,2494.0,2493.5,9.49773004]
[1750922872298,0.95917241,2494.0,2493.5,6.891]
[1750922872471,1.25290138,2494.0,2493.5,6.891]
[1750922874297,0.7917,2493.9,2493.3,3.15688869]
[1750922874497,0.7917,2493.9,2493.4,2.60678864]
[1750922874683,0.7917,2493.9,2493.5,2.60670271]
[1750922875464,0.9917,2493.9,2493.6,2.60665738]
[1750922875904,0.9917,2493.9,2493.5,2.60671828]
[1750922876201,0.9917,2493.9,2493.6,2.6066366]
[1750922877495,0.9917,2493.9,2493.6,2.60665097]
[1750922877699,1.95109588,2493.9,2493.6,2.60665097]
[1750922877903,0.9917,2493.9,2493.6,2.60665097]
[1750922878206,0.9917,2493.9,2493.5,2.60671357]
[1750922878701,0.9917,2493.9,2493.4,2.80683764]
[1750922879204,0.9603609,2493.8,2493.4,2.80683764]
[1750922879409,0.9917,2493.9,2493.4,2.80683764]
[1750922879707,0.96036101,2493.8,2493.4,2.80683764]
[1750922879879,0.9917,2493.9,2493.4,2.80683764]
[1750922880082,0.96034732,2493.8,2493.4,2.80683764]
[1750922880279,0.9917,2493.9,2493.4,2.80683764]
[1750922880487,0.96080818,2493.8,2493.4,2.80683764]
[1750922880688,0.9917,2493.9,2493.4,2.80683764]
[1750922881018,0.9608081,2493.8,2493.4,2.80683764]
[1750922881207,0.9917,2493.9,2493.4,2.80683764]
[1750922881516,0.96087794,2493.8,2493.4,2.80683764]
[1750922881716,0.9917,2493.9,2493.4,2.80683764]
[1750922882022,0.96089652,2493.8,2493.4,0.2]
[1750922882188,0.9917,2493.9,2493.4,0.2]
[1750922882390,0.96097189,2493.8,2493.4,2.80687579]
[1750922882716,0.9917,2493.9,2493.4,2.80687579]
[1750922882931,0.9917,2493.9,2493.3,10.04394873]
[1750922882932,0.7936,2493.7,2492.8,0.8222]
[1750922883085,0.7936,2493.4,2492.5,0.8222]
[1750922883284,0.96123743,2493.3,2492.7,0.2]
[1750922883525,0.7936,2493.0,2492.3,2.60798269]
[1750922883684,0.7936,2493.0,2492.1,0.8222]
[1750922883685,0.2,2492.7,2492.4,2.60791139]
[1750922883889,0.2,2492.7,2492.3,9.68797828]
[1750922884184,0.2,2492.7,2492.4,2.60791435]
[1750922884516,0.9936,2493.0,2492.7,2.6075611]
[1750922884717,0.9936,2493.0,2492.9,2.60740503]
[1750922886298,0.7827,2493.5,2493.1,2.60719586]
[1750922886496,0.2,2493.4,2493.2,2.60702206]
[1750922886696,0.2,2493.4,2493.2,2.6070318]
[1750922887485,0.2,2493.4,2493.3,2.60698672]
[1750922889402,0.2,2493.4,2493.2,2.6070886]
[1750922892804,0.2,2493.4,2493.2,2.60708413]
[1750922893203,0.2,2493.4,2493.1,2.60713955]
[1750922893409,0.2,2493.4,2493.0,2.60721589]
[1750922893809,0.2,2493.4,2493.1,2.60718653]
[1750922894617,0.2,2493.4,2493.0,2.60724634]
[1750922896341,0.2,2493.4,2492.9,0.2]
[1750922896541,0.7827,2493.5,2493.0,6.871]
[1750922896747,0.2,2493.2,2493.0,6.871]
[1750922900230,0.8064,2493.1,2493.0,6.871]
[1750922905062,1.0064,2493.1,2493.0,6.871]
[1750922905274,0.2,2493.1,2493.0,6.871]
[1750922905474,0.2,2493.1,2493.0,9.47830044]
[1750922905976,0.7963,2493.3,2493.0,9.47830044]
[1750922906273,0.2,2493.2,2493.0,9.47830044]
[1750922906779,0.95896544,2493.5,2493.0,9.47830044]
[1750922906780,0.95896544,2493.4,2493.2,2.60704899]
[1750922906974,0.2,2493.4,2493.2,2.60704899]
[1750922908664,0.2,2493.4,2493.3,2.60698672]
[1750922908865,0.2,2493.6,2493.3,2.60698672]
[1750922909060,0.95896544,2493.5,2493.3,2.60698672]
[1750922910579,0.2,2493.6,2493.4,2.60687073]
[1750922910980,0.2,2493.6,2493.3,2.60692607]
[1750922911279,0.2,2493.6,2493.2,2.60704165]
[1750922911481,0.2,2493.6,2493.4,2.60686735]
[1750922911847,0.96012078,2493.7,2493.4,6.859]
[1750922912050,0.96012078,2493.7,2493.5,2.60677762]
[1750922912466,0.9852,2493.8,2493.5,2.60677762]
[1750922912672,0.96021728,2493.7,2493.6,2.60667308]
[1750922913189,0.96018856,2493.7,2493.6,2.60667308]
[1750922913364,0.2,2493.8,2493.6,2.60667308]
[1750922914088,0.2,2493.8,2493.4,9.46581443]
[1750922914089,0.2,2493.8,2493.5,2.60671836]
[1750922917496,0.95962833,2493.9,2493.6,2.60665871]
[1750922917692,1.15962833,2493.9,2493.5,2.80673337]
[1750922918599,0.2,2493.9,2493.6,2.60665482]
[1750922920179,0.2,2493.9,2493.5,2.80672743]
[1750922920379,1.09119574,2493.9,2493.5,2.80672743]
[1750922920695,1.09119574,2493.9,2493.5,0.2]
[1750922921398,1.09119574,2493.9,2493.5,2.80677072]
[1750922921795,0.2,2493.9,2493.5,2.80677072]
[1750922926804,0.2,2493.9,2493.6,2.60667076]
[1750922927006,0.2,2493.9,2493.7,6.846]
[1750922927504,0.2,2493.9,2493.7,9.45249762]
[1750922927703,0.2,2493.9,2493.7,6.846]
[1750922932111,0.2,2493.9,2493.6,6.84]
[1750922932112,0.7754,2493.8,2493.6,6.84]
[1750922932503,0.9754,2493.8,2493.6,6.84]
[1750922934081,0.2,2493.8,2493.6,9.44662294]
[1750922935728,0.95970752,2494.0,2493.6,9.44662294]
[1750922935915,0.2,2494.0,2493.6,9.44662294]
[1750922936526,0.96000675,2493.9,2493.6,9.44662294]
[1750922937330,0.96000675,2493.9,2493.7,2.6065631]
[1750922937827,0.96000675,2493.9,2493.6,9.44661053]
[1750922938008,0.2,2494.0,2493.6,9.44661053]
[1750922938209,0.9601712,2493.9,2493.6,9.44661053]
[1750922938429,0.2,2494.0,2493.6,9.44661053]
[1750922938634,0.9604044,2493.9,2493.6,9.44661053]
[1750922938927,0.8261,2494.1,2493.8,2.60639796]
[1750922939133,0.2,2494.1,2493.9,6.834]
[1750922939334,0.2,2494.1,2493.9,9.44035663]
[1750922940232,0.8007,2494.4,2493.9,7.6652]
[1750922940436,0.814,2494.9,2494.1,0.55]
[1750922940748,5.58603865,2496.0,2494.7,2.60552371]
[1750922940749,0.9603435,2494.8,2494.7,2.60552371]
[1750922940919,0.2,2495.0,2494.7,9.43752371]
[1750922941260,0.96034256,2494.9,2494.7,9.43752371]
[1750922941536,0.96034256,2494.8,2494.7,9.43752371]
[1750922941737,0.2,2495.0,2494.8,2.60541065]
[1750922941926,1.15913706,2495.0,2494.8,2.60541065]
[1750922942239,0.2,2495.0,2494.7,9.43746564]
[1750922943744,0.2,2495.0,2494.2,9.43697331]
[1750922943745,0.761,2494.9,2494.2,9.43697331]
[1750922944041,0.761,2494.6,2494.2,7.031]
[1750922944239,0.961,2494.6,2494.2,7.031]
[1750922944739,0.961,2494.6,2494.2,0.2]
[1750922944947,0.961,2494.6,2493.8,2.60638812]
[1750922944948,0.2,2494.3,2494.1,6.828]
[1750922945648,0.2,2494.3,2493.8,2.80638812]
[1750922945649,0.761,2494.2,2493.8,0.2]
[1750922946018,0.761,2494.2,2493.7,6.828]
[1750922946337,0.2,2494.0,2493.7,6.828]
[1750922947347,6.94356435,2494.4,2493.4,6.826]
[1750922947348,0.761,2493.9,2493.4,6.826]
[1750922947548,0.2,2493.8,2493.4,6.826]
[1750922947922,0.2,2493.8,2493.4,9.43287519]
[1750922950149,0.2,2493.8,2493.4,6.826]
[1750922951161,6.94356435,2493.6,2493.0,0.8399]
[1750922951327,1.57947014,2493.5,2493.0,0.8399]
[1750922951521,0.7892,2493.5,2493.0,0.8399]
[1750922951730,6.94356435,2493.3,2493.0,0.8399]
[1750922951945,0.7944,2493.2,2493.0,0.8399]
[1750922957329,1.75324282,2493.6,2493.0,3.44714731]
[1750922957529,0.7973,2493.6,2493.0,3.44714731]
[1750922957730,2.30797002,2493.6,2493.1,2.60718757]
[1750922957936,2.30797002,2493.6,2493.2,2.60708647]
[1750922958464,0.7973,2493.6,2493.1,2.60714367]
[1750922958772,0.7973,2493.6,2493.2,2.60707904]
[1750922959078,0.7973,2493.6,2493.3,2.60688291]
[1750922959239,0.7973,2493.6,2493.3,2.60694153]
[1750922959569,0.7973,2493.6,2493.3,2.60690497]
[1750922959772,0.7753,2493.8,2493.3,2.60690497]
[1750922959968,1.25714475,2493.8,2493.3,2.60690497]
[1750922960264,1.25714475,2493.8,2493.2,2.60703]
[1750922960471,1.25714475,2493.8,2493.3,2.60697628]
[1750922961174,0.2,2493.5,2493.3,2.60697628]
[1750922961678,0.2,2493.5,2493.1,2.80714459]
[1750922961846,0.2,2493.5,2493.2,2.60708436]
[1750922962676,0.2,2493.5,2493.3,2.60697865]
[1750922963559,0.2,2493.5,2493.2,2.60703821]
[1750922964276,0.2,2493.5,2493.2,2.8979009]
[1750922964482,0.2,2493.5,2493.2,2.60703821]
[1750922965792,0.7991,2493.6,2493.0,0.8399]
[1750922965965,0.7991,2493.6,2493.0,3.44720031]
[1750922966166,0.2,2493.3,2493.0,0.8399]
[1750922967801,0.2,2493.3,2493.0,3.44718816]
[1750922968093,0.2,2493.3,2493.0,3.44713106]
[1750922968298,0.2,2493.3,2493.1,2.60718998]
[1750922968662,0.2,2493.3,2493.0,3.44714722]
[1750922968865,0.2,2493.3,2493.1,2.6071889]
[1750922969172,0.2,2493.3,2493.2,2.60709128]
[1750922969373,0.2,2493.3,2493.2,2.89795397]
[1750922969579,0.2,2493.7,2493.5,2.60675204]
[1750922970180,0.2,2493.7,2493.4,2.60682176]
[1750922970773,0.2,2493.7,2493.3,2.60693475]
[1750922970997,0.7876,2493.8,2493.1,2.60714542]
[1750922971301,0.2,2493.4,2493.1,2.60714542]
[1750922971496,0.9786,2493.4,2493.0,10.45814761]
[1750922971900,0.7786,2493.4,2493.0,0.8399]
[1750922972199,0.2,2493.2,2493.0,0.8399]
[1750922972409,0.2,2493.2,2493.0,3.44720014]
[1750922974794,0.2,2493.2,2493.0,0.8399]
[1750922975389,0.2,2493.2,2493.0,3.44718497]
[1750922976707,0.2,2493.2,2493.0,0.8399]
[1750922977315,0.2,2493.2,2493.0,3.44719987]
[1750922978112,0.2,2493.2,2493.0,0.8399]
[1750922980584,0.2,2493.2,2493.0,3.44719584]
[1750922981619,0.2,2493.2,2493.0,0.8399]
[1750922981822,0.2,2493.1,2493.0,0.8399]
[1750922982623,0.96027855,2493.2,2493.0,3.44720044]
[1750922982821,1.16026674,2493.3,2493.0,3.44720044]
[1750922983032,0.2,2493.3,2493.0,3.44720044]
[1750922983237,1.16026957,2493.3,2493.0,3.44720044]
[1750922983420,0.2,2493.3,2493.0,0.8399]
[1750922983621,0.9603747,2493.2,2493.0,0.8399]
[1750922984437,1.29786,2493.3,2493.0,0.8399]
[1750922984595,0.96056767,2493.2,2493.0,0.8399]
[1750922985021,1.29786,2493.3,2493.0,0.8399]
[1750922985236,0.2,2493.3,2493.0,3.44717607]
[1750922985389,0.96075258,2493.2,2493.0,3.44717607]
[1750922985596,0.2,2493.3,2493.0,3.44717607]
[1750922986139,0.96068928,2493.5,2493.1,0.2]
[1750922986298,0.96068928,2493.4,2493.3,3.35807819]
[1750922986639,0.96083415,2493.5,2493.3,3.35807819]
[1750922986837,0.2,2493.6,2493.3,3.35807819]
[1750922987021,0.2,2493.6,2493.3,0.7511]
[1750922987536,0.2,2493.6,2493.1,2.80713152]
[1750922987833,0.2,2493.6,2493.2,2.60708602]
[1750922988252,0.2,2493.6,2493.1,3.56888813]
[1750922989157,0.96075026,2493.5,2493.1,3.56888813]
[1750922989360,0.2,2493.6,2493.2,2.60707123]
[1750922989571,0.9606918,2493.5,2493.1,3.56883223]
[1750922989857,0.2,2493.6,2493.2,2.60708025]
[1750922990145,0.2,2493.6,2493.2,2.60700942]
[1750922990351,0.2,2493.6,2493.1,0.9617]
[1750922990599,10.0,2494.1,2493.4,0.75]
[1750922990600,0.2,2493.9,2493.4,0.75]
[1750922990767,0.7777,2494.1,2493.6,2.60661232]
[1750922990768,0.9777,2494.1,2493.6,2.60661232]
[1750922990973,0.96050357,2494.0,2493.6,2.80661232]
[1750922991186,0.96050357,2493.9,2493.6,2.80661232]
[1750922991493,0.9777,2494.1,2493.7,2.60656793]
[1750922991717,0.96016878,2494.0,2493.7,2.60656793]
[1750922991864,0.96016878,2493.9,2493.7,2.60656793]
[1750922992196,0.9777,2494.1,2493.7,2.60656793]
[1750922992358,0.96017407,2494.0,2493.6,2.80662655]
[1750922992558,0.96017407,2493.9,2493.6,0.2]
[1750922992766,0.9777,2494.1,2493.6,0.2]
[1750922992767,0.96017407,2494.0,2493.6,0.2]
[1750922992972,1.15994896,2493.9,2493.5,0.2]
[1750922993173,0.8251,2493.8,2493.5,0.2]
[1750922993598,1.78493858,2493.8,2493.5,0.2]
[1750922993805,0.8251,2493.8,2493.5,0.2]
[1750922994094,0.8251,2493.8,2493.3,6.794]
[1750922994095,0.2,2493.6,2493.3,6.794]
[1750922994675,0.2,2493.6,2493.3,9.40093976]
[1750922996189,0.2,2493.6,2493.4,2.60687836]
[1750922996388,0.2,2493.6,2493.3,6.794]
[1750922996621,0.2,2493.6,2493.3,9.4009458]
[1750922996791,0.2,2493.6,2493.4,2.60684006]
[1750922997400,0.2,2493.6,2493.4,2.60466178]
[1750922997603,0.2,2493.6,2493.4,2.60360792]
[1750922998831,0.2,2493.6,2493.5,2.60677762]
[1750922999131,0.2,2493.6,2493.4,3.41512488]
[1750923000336,0.2,2493.6,2493.4,3.41517297]
[1750923000630,0.2,2493.6,2493.4,3.4151663]
[1750923000841,0.2,2493.9,2493.5,2.60669609]
[1750923001196,0.2,2493.9,2493.4,3.61511936]
[1750923001515,0.7514,2494.0,2493.3,9.40090764]
[1750923001718,0.7514,2494.0,2493.3,9.60090764]
[1750923001719,0.2,2493.8,2493.3,9.60090764]
[1750923002409,0.7514,2494.0,2493.3,9.40093745]
[1750923002729,0.2,2493.6,2493.4,2.60683592]
[1750923002925,0.2,2493.6,2493.3,6.794]
[1750923003703,0.2,2493.6,2493.3,9.40095165]
[1750923004138,0.2,2493.6,2493.3,6.794]
[1750923004640,0.2,2493.6,2493.4,2.6067933]
[1750923004821,0.2,2493.6,2493.5,2.60677762]
[1750923005002,0.2,2493.9,2493.5,2.60677762]
[1750923005404,0.2,2493.9,2493.4,0.2]
[1750923005635,0.95921567,2493.9,2493.4,2.6068773]
[1750923005806,0.2,2493.7,2493.3,9.60092145]
[1750923006003,0.7786,2493.6,2493.3,6.994]
[1750923006437,0.7786,2493.6,2493.3,9.60097455]
[1750923006810,0.7786,2493.6,2493.3,6.994]
[1750923007023,0.2,2493.7,2493.3,9.60092525]
[1750923007512,0.2,2493.7,2493.6,2.60667308]
[1750923007706,0.2,2493.9,2493.6,2.60666784]
[1750923009040,0.2,2493.9,2493.5,3.37861328]
[1750923009429,0.2,2493.9,2493.6,2.60661062]
[1750923010010,0.8143,2494.1,2493.8,2.60646403]
[1750923010233,0.8143,2494.1,2493.5,3.37859208]
[1750923010234,0.2,2494.1,2493.9,2.60629793]
[1750923011248,0.2,2494.1,2494.0,2.60625501]
[1750923011436,0.7507,2494.3,2494.0,2.60625501]
[1750923011609,0.9507,2494.3,2494.0,2.60625501]
[1750923012337,1.90991567,2494.3,2493.8,2.80640229]
[1750923012515,0.9507,2494.3,2493.8,2.80640229]
[1750923012706,0.7507,2494.3,2493.7,6.78]
[1750923012907,0.2,2494.1,2493.7,6.78]
[1750923014134,0.95921567,2494.2,2493.7,6.78]
[1750923014336,0.2,2493.9,2493.7,6.78]
[1750923014645,0.7628,2493.8,2493.7,6.78]
[1750923014943,0.9628,2493.8,2493.4,9.38483711]
[1750923015108,0.9628,2493.8,2493.4,9.38383711]
[1750923015312,0.9628,2493.8,2493.5,2.60674773]
[1750923015519,0.95921567,2494.1,2493.8,2.60646363]
[1750923015848,1.15921567,2494.1,2493.8,2.60640797]
[1750923016346,0.2,2494.1,2493.7,2.606514]
[1750923016550,0.2,2494.1,2493.6,2.80660674]
[1750923016551,0.2,2494.1,2493.6,2.80661936]
[1750923016848,0.2,2494.1,2493.7,2.6065601]
[1750923017851,0.2,2494.1,2493.6,0.2]
[1750923018230,1.1599308,2494.1,2493.9,2.60628657]
[1750923018844,0.9599308,2494.3,2494.0,2.60625501]
[1750923019045,0.95996313,2494.2,2494.0,2.60625501]
[1750923019224,0.95996313,2494.2,2493.9,3.61350032]
[1750923019862,0.95996313,2494.2,2494.0,2.60624515]
[1750923020970,0.2,2494.3,2494.0,2.60624515]
[1750923021257,0.2,2494.3,2494.2,2.60604602]
[1750923021463,0.2,2494.5,2494.1,2.60610288]
[1750923022344,0.2,2494.5,2494.2,2.60602981]
[1750923022661,0.2,2494.5,2494.1,2.60609089]
[1750923023059,0.2,2494.5,2494.0,0.2]
[1750923023269,0.8266,2494.4,2494.0,0.2]
[1750923023482,0.2,2494.2,2493.9,6.772]
[1750923024445,0.2,2494.2,2493.8,0.2]
[1750923024827,0.2,2494.2,2493.8,2.80641903]
[1750923025130,0.2,2494.2,2493.9,2.60634741]
[1750923025776,0.2,2494.2,2493.8,2.80640426]
[1750923025957,0.2,2494.2,2493.8,0.2]
[1750923026157,0.2,2494.2,2493.8,2.80646129]
[1750923026796,0.2,2494.2,2493.8,0.2]
[1750923027495,0.2,2494.2,2493.8,2.80644481]
[1750923027655,0.2,2494.2,2493.8,2.80646072]
[1750923027988,0.2,2494.2,2493.8,0.2]
[1750923028564,0.2,2494.2,2493.8,2.80643999]
[1750923031502,0.2,2494.2,2493.9,2.60635476]
[1750923031798,1.15931992,2494.2,2493.8,0.2]
[1750923032002,0.2,2494.2,2493.8,2.80646277]
[1750923032168,1.15931992,2494.2,2493.8,2.80646277]
[1750923032372,0.2,2494.2,2493.8,2.80646277]
[1750923033677,1.15958129,2494.2,2493.8,2.80646277]
[1750923033877,0.2,2494.2,2493.8,2.80646277]
[1750923034091,1.15958129,2494.2,2493.8,2.80646277]
[1750923034290,0.2,2494.2,2493.8,2.80646277]
[1750923034607,1.15958129,2494.2,2493.8,2.80646277]
[1750923034795,0.2,2494.2,2493.8,0.2]
[1750923034977,1.15958129,2494.2,2493.8,0.2]
[1750923035178,0.2,2494.2,2493.8,0.2]
[1750923035378,1.15958129,2494.2,2493.8,0.2]
[1750923035575,0.2,2494.2,2493.8,0.2]
[1750923035880,1.15958129,2494.2,2493.8,0.2]
[1750923036080,0.2,2494.2,2493.8,0.2]
[1750923036308,1.15958129,2494.2,2493.8,0.2]
[1750923036499,0.806,2494.1,2493.8,0.2]
[1750923036818,0.2,2494.0,2493.7,6.762]
[1750923041620,1.79165538,2494.4,2493.9,2.60635951]
[1750923041820,0.2,2494.2,2493.9,2.60635951]
[1750923042198,0.2,2494.2,2494.0,2.60624446]
[1750923042437,0.2,2494.2,2494.1,2.60615051]
[1750923042636,9.618,2495.0,2494.2,0.7925]
[1750923042637,0.2,2494.6,2494.2,0.7925]
[1750923042833,0.96031162,2494.7,2494.3,2.80589236]
[1750923043009,0.96031162,2494.6,2494.3,2.80589236]
[1750923043207,0.9988,2494.8,2494.3,0.2]
[1750923043432,0.2,2494.4,2494.1,6.758]
[1750923043739,0.9988,2494.4,2494.1,6.758]
[1750923044141,0.2,2494.4,2494.1,9.3641445]
[1750923044314,0.96012243,2494.8,2494.1,9.3641445]
[1750923044315,0.96012243,2494.7,2494.3,2.60586422]
[1750923044512,0.95977495,2494.7,2494.3,2.80586422]
[1750923044701,0.95977495,2494.7,2494.4,2.60582733]
[1750923044901,0.95977495,2494.7,2494.3,2.80589553]
[1750923045097,0.9983,2494.8,2494.3,0.2]
[1750923045303,0.2,2494.6,2494.1,9.56409389]
[1750923045515,0.2,2494.6,2494.1,9.56409457]
[1750923045712,1.15976888,2494.6,2494.1,9.56409457]
[1750923046440,0.2,2494.6,2494.1,9.56409457]
[1750923046854,1.15966754,2494.6,2494.1,6.958]
[1750923047150,0.8164,2494.4,2494.1,6.758]
[1750923047309,1.0164,2494.4,2494.1,6.758]
[1750923048523,0.8164,2494.4,2494.1,6.758]
[1750923048724,0.2,2494.2,2494.1,6.758]
[1750923049147,0.2,2494.2,2493.8,11.38543236]
[1750923049345,0.2,2494.2,2493.9,2.60629857]
[1750923050164,0.2,2494.2,2494.0,2.60622415]
[1750923050365,0.2,2494.2,2493.8,8.779]
[1750923050528,1.0164,2494.4,2494.0,2.60621704]
[1750923051661,1.0164,2494.4,2493.9,2.80630974]
[1750923052534,1.0164,2494.4,2494.0,2.606254]
[1750923053737,1.0164,2494.4,2494.0,0.29086269]
[1750923053937,0.2,2494.4,2494.1,2.60605381]
[1750923054171,0.2,2494.4,2494.2,2.6060403]
[1750923054340,0.2,2494.4,2493.9,0.2]
[1750923054548,0.9553,2494.6,2494.2,2.60594742]
[1750923054781,0.2,2494.6,2494.4,2.60579722]
[1750923054977,10.0,2494.9,2494.6,2.60555928]
[1750923054978,1.73619075,2494.9,2494.6,2.60555928]
[1750923055366,1.73619075,2494.9,2494.5,3.58379649]
[1750923055549,1.73619075,2494.9,2494.5,0.2]
[1750923055756,1.73619075,2494.9,2494.5,2.80567905]
[1750923055956,1.73619075,2494.9,2494.6,2.60561235]
[1750923056147,0.7768,2494.9,2494.7,2.60550153]
[1750923056351,0.7768,2494.9,2494.6,2.60557014]
[1750923056875,0.7768,2494.9,2494.5,2.80570455]
[1750923056876,0.7768,2494.9,2494.5,2.80566974]
[1750923057077,0.7768,2494.9,2494.6,2.60561414]
[1750923057381,0.2,2495.0,2494.5,2.80569353]
[1750923057679,0.2,2495.0,2494.7,2.60545318]
[1750923057886,0.2,2495.0,2494.8,2.60531982]
[1750923058205,0.2,2495.3,2494.9,0.2]
[1750923059258,0.2,2495.3,2494.9,2.80531423]
[1750923059687,0.8204,2495.4,2495.1,2.60503856]
[1750923059959,3.61329075,2495.8,2495.3,2.60484049]
[1750923060190,3.61329075,2495.8,2495.3,2.80484049]
[1750923060191,2.8539,2495.8,2495.3,2.80484049]
[1750923060756,2.8539,2495.8,2495.3,0.2]
[1750923061071,3.13929,2495.8,2495.3,0.2]
[1750923063410,2.93929,2495.8,2495.1,0.55]
[1750923063704,0.8167,2495.5,2494.7,3.40058043]
[1750923063859,0.2,2495.4,2495.0,0.2]
[1750923064299,0.2,2495.4,2494.6,10.0]
[1750923064300,0.7744,2495.4,2494.6,10.0]
[1750923064457,0.2,2495.2,2494.8,0.2]
[1750923068568,0.2,2495.2,2494.8,2.80540621]
[1750923068971,0.2,2495.2,2494.8,2.8053791]
[1750923070202,0.2,2495.2,2495.0,3.41001251]
[1750923070506,0.2,2495.6,2495.1,0.2]
[1750923072106,0.2,2495.6,2495.1,2.80507676]
[1750923073490,0.2,2495.6,2495.1,0.2]
[1750923073706,0.2,2495.6,2495.1,2.80510204]
[1750923073892,0.2,2495.6,2495.2,2.6049992]
[1750923074092,0.2,2495.6,2495.1,2.80504612]
[1750923074291,0.2,2495.6,2495.1,0.2]
[1750923074800,0.2,2495.6,2495.2,2.60500005]
[1750923075394,0.2,2495.6,2495.3,2.60489254]
[1750923075595,0.2,2495.6,2495.2,2.60497392]
[1750923076712,0.2,2495.6,2495.3,2.60489442]
[1750923077011,0.2,2495.6,2495.2,2.60494299]
[1750923077313,0.2,2495.6,2495.1,2.80504251]
[1750923077616,0.2,2495.6,2495.1,0.2]
[1750923077787,0.2,2495.6,2495.1,2.80509684]
[1750923078703,2.76839997,2495.8,2495.0,7.5419]
[1750923078704,0.7965,2495.5,2495.0,7.5419]
[1750923078904,0.2,2495.4,2495.0,9.54220472]
[1750923079311,0.2,2495.4,2495.0,6.937]
[1750923079510,0.2,2495.4,2495.0,9.54220841]
[1750923079809,0.2,2495.4,2495.1,2.60505651]
[1750923080007,0.2,2495.4,2495.2,2.60499434]
[1750923081023,0.8309,2495.7,2495.3,2.6048972]
[1750923081225,0.2,2495.6,2495.3,2.6048972]
[1750923081600,0.2,2495.6,2495.2,0.9959]
[1750923081926,2.5759,2496.1,2495.7,2.60442771]
[1750923082129,0.9639,2496.1,2495.7,2.60442771]
[1750923082499,0.9639,2496.1,2495.7,2.60442739]
[1750923082699,0.9639,2496.1,2495.8,2.60437054]
[1750923082921,0.9639,2496.1,2495.7,2.60441872]
[1750923083430,0.9639,2496.1,2495.6,3.41053776]
[1750923083795,0.9639,2496.1,2495.6,0.806]
[1750923083995,7.74256435,2496.0,2495.3,6.728]
[1750923084214,0.2,2495.4,2495.3,6.728]
[1750923084428,0.999,2495.4,2495.3,6.728]
[1750923086529,0.999,2495.4,2495.0,0.2]
[1750923087727,1.95628581,2495.4,2495.0,0.2]
[1750923087894,0.2,2495.0,2494.7,6.725]
[1750923089313,0.2,2495.0,2494.9,2.60531484]
[1750923089516,0.799,2495.4,2494.8,2.80536296]
[1750923089517,0.2,2495.2,2494.8,2.80536296]
[1750923089710,0.2,2495.2,2494.9,2.60530044]
[1750923089910,0.2,2495.2,2494.8,2.80536638]
[1750923090939,0.2,2495.2,2494.8,0.2]
[1750923091125,0.2,2495.2,2494.8,2.8054122]
[1750923091943,0.2,2495.2,2494.8,0.2]
[1750923092238,0.2,2495.2,2494.8,2.8054064]
[1750923093109,0.2,2495.2,2494.8,0.2]
[1750923093110,0.7592,2495.1,2494.8,0.2]
[1750923093535,0.7592,2495.1,2494.8,2.80541349]
[1750923093937,0.7592,2495.1,2494.8,0.2]
[1750923094136,0.7592,2495.1,2494.8,2.80541194]
[1750923094318,1.812,2495.7,2494.8,2.80541194]
[1750923094319,0.95929082,2495.5,2494.9,1.3667]
[1750923094638,0.95929082,2496.2,2495.7,2.6044797]
[1750923094840,0.95929082,2496.2,2495.7,6.721]
[1750923095011,0.95929082,2496.1,2495.7,6.721]
[1750923095211,0.95929082,2496.2,2495.7,6.721]
[1750923095530,0.95929082,2496.1,2495.7,9.32547406]
[1750923095715,0.95929082,2496.2,2495.7,6.721]
[1750923095922,0.95929082,2496.1,2495.7,9.32545859]
[1750923096109,0.95929082,2496.2,2495.7,9.32545859]
[1750923096325,0.95929082,2496.2,2495.8,2.60436154]
[1750923097243,0.8178,2496.3,2495.8,2.60436154]
[1750923097423,0.8178,2496.3,2495.8,2.60437535]
[1750923097830,0.8178,2496.3,2496.0,2.60415591]
[1750923098237,0.8178,2496.3,2495.9,2.60420284]
[1750923099163,1.71969082,2496.7,2495.9,0.55]
[1750923099342,1.71969082,2496.7,2496.1,0.55]
[1750923099343,0.7604,2496.7,2496.1,0.55]
[1750923099518,0.7604,2496.7,2496.3,2.6037846]
[1750923100162,0.7604,2496.7,2496.1,0.55]
[1750923100364,0.7604,2496.7,2496.0,0.789]
[1750923100365,0.7604,2496.7,2496.0,2.60416666]
[1750923100655,0.7604,2496.7,2495.9,2.60421255]
[1750923101650,0.7604,2496.7,2495.8,12.60430803]
[1750923102148,0.7604,2496.7,2495.9,2.6042629]
[1750923102359,0.7604,2496.7,2496.0,2.60416075]
[1750923102722,0.7604,2496.7,2495.9,2.60423713]
[1750923103341,0.7604,2496.7,2495.8,10.0]
[1750923103546,0.7604,2496.7,2495.8,12.60433231]
[1750923103750,0.7604,2496.7,2495.9,2.60426798]
[1750923104046,0.7732,2496.6,2495.7,9.32541008]
[1750923104252,0.7732,2496.6,2495.3,0.7802]
[1750923104253,6.94356435,2496.1,2495.3,0.7802]
[1750923104554,0.2,2495.8,2495.3,0.2]
[1750923104733,1.801,2496.0,2495.2,10.0]
[1750923104929,0.2,2495.6,2495.2,12.80499464]
[1750923105134,0.2,2495.6,2495.2,10.2]
[1750923105329,0.2,2495.6,2495.2,2.80499665]
[1750923105573,0.2,2495.6,2495.3,2.6048824]
[1750923105847,0.2,2495.8,2495.4,2.60472735]
[1750923106284,0.7732,2495.9,2495.4,2.60472735]
[1750923106285,0.7732,2495.9,2495.4,0.55]
[1750923106554,0.7732,2495.9,2495.5,0.2]